fUSD/lending_fUSD_20250426
["ID","MTS","AMOUNT","RATE_DAILY","PERIOD"]
[359059356,1745682639881,-379.52554957,0.00019967,2]
[359059357,1745682639891,-674.78,0.00019967,2]
[359059358,1745682639900,-400.0,0.00019967,2]
[359059359,1745682639910,-386.68122914,0.00019967,2]
[359059360,1745682639920,-518.62,0.00019967,2]
[359059361,1745682639930,-400.0,0.00019967,2]
[359059362,1745682639939,-400.0,0.00019967,2]
[359059363,1745682639948,-400.0,0.00019967,2]
[359059364,1745682639958,-400.0,0.00019967,2]
[359059365,1745682639967,-779.29,0.00019967,2]
[359059366,1745682639976,-400.0,0.00019967,2]
[359059367,1745682639986,-936.51,0.00019967,2]
[359059368,1745682639995,-400.0,0.00019967,2]
[359059369,1745682640006,-400.0,0.00019967,2]
[359059370,1745682640016,-400.0,0.00019967,2]
[359059371,1745682640026,-400.0,0.00019967,2]
[359059372,1745682640036,-799.53,0.00019967,2]
[359059373,1745682640045,-569.28,0.00019967,2]
[359059374,1745682640055,-400.0,0.00019967,2]
[359059375,1745682640064,-400.0,0.00019967,2]
[359059376,1745682640074,-705.49,0.00019967,2]
[359059377,1745682640083,-400.0,0.00019967,2]
[359059378,1745682640092,-400.0,0.00019967,2]
[359059379,1745682640102,-400.0,0.00019967,2]
[359059380,1745682640111,-783.8,0.00019967,2]
[359059381,1745682640121,-600.25,0.00019967,2]
[359059382,1745682640131,-617.78,0.00019967,2]
[359059384,1745682640141,-868.83,0.00019967,2]
[359059385,1745682640150,-1108.91,0.00019967,2]
[359059386,1745682640160,-688.84,0.00019967,2]
[359059387,1745682640169,-604.29,0.00019967,2]
[359059388,1745682640179,-252.92410578,0.00019967,2]
[359059389,1745682640189,-486.67,0.00019967,2]
[359059390,1745682640199,-400.0,0.00019967,2]
[359059391,1745682640208,-400.0,0.00019967,2]
[359059392,1745682640218,-400.0,0.00019968,2]
[359059393,1745682640228,-200.0,0.00019968,2]
[359059394,1745682640238,-400.0,0.00019968,2]
[359059395,1745682640247,-829.71,0.00019968,2]
[359059396,1745682640256,-200.0,0.00019968,2]
[359059397,1745682640266,-400.0,0.00019968,2]
[359059398,1745682640277,-400.0,0.00019968,2]
[359059399,1745682640286,-523.93,0.00019968,2]
[359059400,1745682640296,-400.0,0.00019968,2]
[359059401,1745682640305,-400.0,0.00019968,2]
[359059403,1745682640315,-400.0,0.00019968,2]
[359059405,1745682640325,-518.46,0.00019968,2]
[359059406,1745682640334,-689.65,0.00019968,2]
[359059407,1745682640344,-400.0,0.00019968,2]
[359059408,1745682640355,-487.67,0.00019968,2]
[359059409,1745682640365,-400.0,0.00019968,2]
[359059410,1745682640375,-400.0,0.00019968,2]
[359059411,1745682640384,-400.0,0.00019968,2]
[359059412,1745682640395,-400.0,0.00019968,2]
[359059413,1745682640405,-1558.84,0.00019968,2]
[359059414,1745682640414,-400.0,0.00019968,2]
[359059415,1745682640424,-616.09,0.00019968,2]
[359059416,1745682640434,-400.0,0.00019968,2]
[359059417,1745682640443,-538.48345848,0.00019968,2]
[359059418,1745682640454,-493.73,0.00019968,2]
[359059419,1745682640463,-400.0,0.00019968,2]
[359059420,1745682640472,-662.23,0.00019968,2]
[359059421,1745682640482,-425.61,0.00019968,2]
[359059422,1745682640492,-785.17,0.00019968,2]
[359059423,1745682640502,-689.29,0.00019968,2]
[359059424,1745682640511,-755.18,0.00019968,2]
[359059425,1745682640521,-645.85,0.00019968,2]
[359059426,1745682640531,-462.31,0.00019968,2]
[359059427,1745682640540,-708.41,0.00019968,2]
[359059428,1745682640550,-400.0,0.00019968,2]
[359059429,1745682640559,-529.37,0.00019968,2]
[359059430,1745682640569,-489.17,0.00019968,2]
[359059431,1745682640578,-665.45,0.00019968,2]
[359059432,1745682640588,-572.18,0.00019968,2]
[359059433,1745682640597,-511.92,0.00019968,2]
[359059434,1745682640607,-400.0,0.00019968,2]
[359059435,1745682640616,-400.0,0.00019968,2]
[359059436,1745682640626,-400.0,0.00019968,2]
[359059437,1745682640636,-804.26,0.00019968,2]
[359059438,1745682640646,-494.76,0.00019968,2]
[359059439,1745682640655,-600.61,0.00019968,2]
[359059440,1745682640665,-416.68,0.00019968,2]
[359059441,1745682640675,-400.0,0.00019968,2]
[359059442,1745682640685,-632.49,0.00019968,2]
[359059443,1745682640694,-400.0,0.00019968,2]
[359059444,1745682640704,-400.0,0.00019968,2]
[359059445,1745682640714,-1261.43,0.00019968,2]
[359059446,1745682640723,-980.72,0.00019968,2]
[359059447,1745682640733,-980.72,0.00019968,2]
[359059448,1745682640742,-400.0,0.00019968,2]
[359059449,1745682640752,-400.0,0.00019968,2]
[359059450,1745682640762,-400.0,0.00019968,2]
[359059451,1745682640771,-400.0,0.00019968,2]
[359059452,1745682640781,-970.57,0.00019968,2]
[359059453,1745682640790,-613.78,0.00019968,2]
[359059454,1745682640799,-859.56,0.00019968,2]
[359059455,1745682640809,-400.0,0.00019968,2]
[359059456,1745682640818,-400.0,0.00019968,2]
[359059457,1745682640828,-400.0,0.00019968,2]
[359059458,1745682640837,-300.0,0.00019968,2]
[359059459,1745682640847,-400.0,0.00019968,2]
[359059460,1745682640857,-995.7,0.00019968,2]
[359059461,1745682640866,-576.63,0.00019968,2]
[359059462,1745682640875,-459.46,0.00019968,2]
[359059463,1745682640885,-400.0,0.00019968,2]
[359059464,1745682640894,-670.93,0.00019968,2]
[359059465,1745682640903,-182.67810974,0.00019968,2]
[359059466,1745682640913,-400.0,0.00019968,2]
[359059467,1745682640922,-400.0,0.00019968,2]
[359059468,1745682640931,-400.0,0.00019968,2]
[359059469,1745682640941,-200.0,0.00019968,2]
[359059470,1745682640950,-498.67,0.00019968,2]
[359059471,1745682640960,-481.15,0.00019968,2]
[359059472,1745682640970,-400.0,0.00019968,2]
[359059473,1745682640979,-400.0,0.00019968,2]
[359059474,1745682640988,-917.4,0.00019968,2]
[359059475,1745682640998,-583.02,0.00019968,2]
[359059476,1745682641007,-400.0,0.00019968,2]
[359059477,1745682641017,-400.0,0.00019968,2]
[359059478,1745682641026,-400.0,0.00019968,2]
[359059479,1745682641035,-12360.77,0.00019968,2]
[359059480,1745682641045,-400.0,0.00019968,2]
[359059481,1745682641054,-6168.77,0.00019968,2]
[359059482,1745682641063,-708.08,0.00019968,2]
[359059483,1745682641072,-400.0,0.00019968,2]
[359059484,1745682641082,-400.0,0.00019968,2]
[359059485,1745682641093,-2358.6,0.00019968,2]
[359059487,1745682641103,-400.0,0.00019968,2]
[359059489,1745682641112,-573.22,0.00019968,2]
[359059490,1745682641121,-400.0,0.00019968,2]
[359059491,1745682641131,-3869.93,0.00019968,2]
[359059492,1745682641141,-400.0,0.00019968,2]
[359059493,1745682641150,-400.0,0.00019968,2]
[359059494,1745682641159,-400.0,0.00019968,2]
[359059495,1745682641169,-542.75,0.00019968,2]
[359059496,1745682641178,-425.93,0.00019968,2]
[359059497,1745682641188,-450.9,0.00019968,2]
[359059498,1745682641197,-400.0,0.00019968,2]
[359059499,1745682641207,-676.92,0.00019968,2]
[359059500,1745682641217,-400.0,0.00019968,2]
[359059501,1745682641227,-400.0,0.00019968,2]
[359059502,1745682641236,-566.04,0.00019968,2]
[359059503,1745682641246,-150.0,0.00019968,2]
[359059504,1745682641256,-716.52,0.00019968,2]
[359059505,1745682641266,-500.0,0.00019968,2]
[359059506,1745682641276,-150.0,0.00019968,2]
[359059507,1745682641286,-150.0,0.00019968,2]
[359059508,1745682641295,-150.0,0.00019968,2]
[359059509,1745682641305,-500.0,0.00019968,2]
[359059510,1745682641314,-729.42,0.00019968,2]
[359059511,1745682641324,-767.97,0.00019968,2]
[359059512,1745682641333,-5000.49,0.00019968,2]
[359059513,1745682641343,-400.0,0.00019968,2]
[359059514,1745682641353,-559.02,0.00019968,2]
[359059515,1745682641364,-400.0,0.00019968,2]
[359059516,1745682641374,-83351.55,0.00019968,2]
[359059517,1745682641383,-859.18,0.00019968,2]
[359059518,1745682641392,-688.0,0.00019968,2]
[359059519,1745682641402,-700.06,0.00019968,2]
[359059520,1745682641411,-586.57,0.00019968,2]
[359059521,1745682641420,-600.47,0.00019968,2]
[359059522,1745682641430,-533.23,0.00019968,2]
[359059523,1745682641440,-400.0,0.00019968,2]
[359059524,1745682641450,-452.27,0.00019968,2]
[359059525,1745682641460,-400.0,0.00019968,2]
[359059526,1745682641469,-400.0,0.00019968,2]
[359059527,1745682641479,-737.03,0.00019968,2]
[359059528,1745682641488,-510.29,0.00019968,2]
[359059529,1745682641498,-744.74,0.00019968,2]
[359059530,1745682641507,-400.0,0.00019968,2]
[359059531,1745682641516,-523.53,0.00019968,2]
[359059532,1745682641525,-625.22,0.00019968,2]
[359059533,1745682641535,-737.52,0.00019968,2]
[359059534,1745682641545,-400.0,0.00019968,2]
[359059535,1745682641555,-1158.32,0.00019968,2]
[359059536,1745682641564,-415.81,0.00019968,2]
[359059537,1745682641574,-1074.98,0.00019968,2]
[359059538,1745682641584,-1143.17,0.00019968,2]
[359059539,1745682641594,-400.0,0.00019968,2]
[359059540,1745682641603,-400.0,0.00019968,2]
[359059541,1745682641612,-614.72,0.00019968,2]
[359059542,1745682641621,-706.7,0.00019968,2]
[359059543,1745682641631,-400.0,0.00019968,2]
[359059544,1745682641641,-400.0,0.00019968,2]
[359059545,1745682641650,-400.0,0.00019968,2]
[359059546,1745682641659,-799.72,0.00019968,2]
[359059547,1745682641670,-1603.5,0.00019968,2]
[359059548,1745682641679,-400.0,0.00019968,2]
[359059549,1745682641691,-400.0,0.00019968,2]
[359059550,1745682641700,-1045.27,0.00019968,2]
[359059551,1745682641710,-500.0,0.00019968,2]
[359059552,1745682641719,-966.86,0.00019968,2]
[359059553,1745682641729,-150.0,0.00019968,2]
[359059554,1745682641738,-400.0,0.00019968,2]
[359059555,1745682641747,-1883.41,0.00019968,2]
[359059556,1745682641757,-585.25,0.00019968,2]
[359059557,1745682641766,-500.0,0.00019968,2]
[359059558,1745682641776,-150.0,0.00019968,2]
[359059559,1745682641785,-150.0,0.00019968,2]
[359059560,1745682641794,-1228.66,0.00019968,2]
[359059561,1745682641805,-500.0,0.00019968,2]
[359059562,1745682641815,-735.56,0.00019968,2]
[359059563,1745682641825,-500.0,0.00019968,2]
[359059564,1745682641834,-400.0,0.00019968,2]
[359059565,1745682641845,-1216.72,0.00019968,2]
[359059566,1745682641855,-400.0,0.00019968,2]
[359059567,1745682641864,-836.78,0.00019968,2]
[359059568,1745682641877,-423.74,0.00019968,2]
[359059569,1745682641889,-409.27,0.00019968,2]
[359059570,1745682641903,-534.21,0.00019968,2]
[359059571,1745682641916,-851.1,0.00019968,2]
[359059572,1745682641927,-3335.8,0.00019968,2]
[359059573,1745682641939,-400.0,0.00019968,2]
[359059574,1745682641948,-700.65,0.00019968,2]
[359059575,1745682641957,-747.82,0.00019968,2]
[359059576,1745682641966,-590.53,0.00019968,2]
[359059577,1745682641976,-742.6,0.00019968,2]
[359059578,1745682641985,-831.21,0.00019968,2]
[359059579,1745682641995,-1138.62,0.00019968,2]
[359059580,1745682642011,-400.0,0.00019968,2]
[359059581,1745682642028,-400.0,0.00019968,2]
[359059582,1745682642043,-790.75,0.00019968,2]
[359059583,1745682642056,-499.51,0.00019968,2]
[359059584,1745682642069,-711.63,0.00019968,2]
[359059585,1745682642083,-907.36,0.00019968,2]
[359059586,1745682642097,-41144.42553099,0.00019968,2]
[359059587,1745682642170,-571.97,0.00019967,2]
[359059588,1745682642181,-339.06,0.00019968,2]
[359059589,1745682642330,-7631.04508113,0.00019968,2]
[359059590,1745682642347,-1476.41154043,0.00019968,2]
[359059591,1745682642367,-1496.61354224,0.00019968,2]
[359059592,1745682643196,-256.18017916,0.00019967,2]
[359059606,1745682643348,-174.62982084,0.00019967,2]
[359059607,1745682643363,-340.86958496,0.00019968,2]
[359059608,1745682643377,-3470.3871961,0.00019968,2]
[359059609,1745682643392,-2304.15286917,0.00019968,2]
[359059610,1745682643408,-44428.37465498,0.00019968,2]
[359059611,1745682643421,-400.0,0.00019969,2]
[359059612,1745682643434,-199.80801917,0.00019969,2]
[359059613,1745682643447,-881.17,0.00019969,2]
[359059614,1745682643460,-500.64604961,0.00019969,2]
[359059615,1745682643471,-500.0,0.00019969,2]
[359059616,1745682643484,-733.92,0.00019969,2]
[359059617,1745682643496,-657.72,0.00019969,2]
[359059618,1745682643509,-400.0,0.00019969,2]
[359059619,1745682643522,-427.88732377,0.00019969,2]
[359059620,1745682643536,-400.0,0.00019969,2]
[359059621,1745682643550,-400.0,0.00019969,2]
[359059622,1745682643563,-400.0,0.00019969,2]
[359059623,1745682643577,-400.0,0.00019969,2]
[359059624,1745682643589,-733.86,0.00019969,2]
[359059625,1745682643602,-400.0,0.00019969,2]
[359059626,1745682643616,-806.82,0.00019969,2]
[359059627,1745682643631,-652.94,0.00019969,2]
[359059628,1745682643644,-400.0,0.00019969,2]
[359059629,1745682643658,-169.18094099,0.00019969,2]
[359059630,1745682643671,-400.0,0.00019969,2]
[359059631,1745682643684,-460.30127748,0.00019969,2]
[359059632,1745682643698,-299.75946424,0.00019969,2]
[359059633,1745682643711,-400.0,0.00019969,2]
[359059634,1745682643724,-420.52100749,0.00019969,2]
[359059635,1745682643737,-400.0,0.00019969,2]
[359059636,1745682643751,-400.0,0.00019969,2]
[359059637,1745682643764,-400.0,0.00019969,2]
[359059638,1745682643777,-400.0,0.00019969,2]
[359059639,1745682643790,-400.0,0.00019969,2]
[359059642,1745682643803,-400.0,0.00019969,2]
[359059643,1745682643816,-400.0,0.00019969,2]
[359059644,1745682643829,-400.0,0.00019969,2]
[359059645,1745682643841,-627.01,0.00019969,2]
[359059646,1745682643854,-400.0,0.00019969,2]
[359059647,1745682643867,-599.35,0.00019969,2]
[359059648,1745682643879,-400.0,0.00019969,2]
[359059649,1745682643891,-400.0,0.00019969,2]
[359059650,1745682643904,-400.0,0.00019969,2]
[359059652,1745682643917,-400.0,0.00019969,2]
[359059654,1745682643929,-400.0,0.00019969,2]
[359059656,1745682643942,-511.79,0.00019969,2]
[359059658,1745682643954,-400.0,0.00019969,2]
[359059661,1745682643967,-400.0,0.00019969,2]
[359059663,1745682643980,-400.0,0.00019969,2]
[359059665,1745682643992,-400.0,0.00019969,2]
[359059667,1745682644006,-400.0,0.00019969,2]
[359059668,1745682644018,-400.0,0.00019969,2]
[359059669,1745682644031,-400.0,0.00019969,2]
[359059670,1745682644044,-490.2,0.00019969,2]
[359059671,1745682644058,-400.0,0.00019969,2]
[359059672,1745682644071,-400.0,0.00019969,2]
[359059673,1745682644083,-400.0,0.00019969,2]
[359059674,1745682644097,-737.11,0.00019969,2]
[359059675,1745682644109,-400.0,0.00019969,2]
[359059676,1745682644122,-401.64,0.00019969,2]
[359059677,1745682644135,-400.0,0.00019969,2]
[359059678,1745682644148,-424.83,0.00019969,2]
[359059679,1745682644161,-767.41,0.00019969,2]
[359059680,1745682644175,-437.98246931,0.00019969,2]
[359059681,1745682644187,-443.62640003,0.00019969,2]
[359059682,1745682644199,-400.0,0.00019969,2]
[359059683,1745682644211,-400.0,0.00019969,2]
[359059684,1745682644223,-400.0,0.00019969,2]
[359059685,1745682644236,-400.0,0.00019969,2]
[359059686,1745682644248,-400.0,0.00019969,2]
[359059687,1745682644261,-635.57,0.00019969,2]
[359059688,1745682644273,-400.0,0.00019969,2]
[359059689,1745682644286,-200.0,0.00019969,2]
[359059690,1745682644298,-400.0,0.00019969,2]
[359059691,1745682644310,-478.14,0.00019969,2]
[359059692,1745682644322,-400.0,0.00019969,2]
[359059693,1745682644335,-530.37,0.00019969,2]
[359059694,1745682644348,-400.0,0.00019969,2]
[359059695,1745682644362,-400.0,0.00019969,2]
[359059696,1745682644375,-400.0,0.00019969,2]
[359059697,1745682644387,-400.0,0.00019969,2]
[359059698,1745682644399,-400.0,0.00019969,2]
[359059699,1745682644412,-400.0,0.00019969,2]
[359059700,1745682644424,-200.0,0.00019969,2]
[359059701,1745682644437,-400.0,0.00019969,2]
[359059702,1745682644450,-708.78,0.00019969,2]
[359059703,1745682644462,-429.77,0.00019969,2]
[359059704,1745682644474,-546.83,0.00019969,2]
[359059705,1745682644486,-400.0,0.00019969,2]
[359059706,1745682644499,-400.0,0.00019969,2]
[359059707,1745682644512,-400.0,0.00019969,2]
[359059708,1745682644525,-400.0,0.00019969,2]
[359059709,1745682644537,-200.0,0.00019969,2]
[359059710,1745682644550,-400.0,0.00019969,2]
[359059711,1745682644563,-447.5,0.00019969,2]
[359059712,1745682644576,-203.80382462,0.00019969,2]
[359059713,1745682644589,-400.0,0.00019969,2]
[359059714,1745682644602,-400.0,0.00019969,2]
[359059715,1745682644614,-400.0,0.00019969,2]
[359059716,1745682644626,-693.09,0.00019969,2]
[359059717,1745682644638,-400.0,0.00019969,2]
[359059718,1745682644650,-400.0,0.00019969,2]
[359059719,1745682644662,-825.44,0.00019969,2]
[359059720,1745682644675,-545.91,0.00019969,2]
[359059721,1745682644688,-400.0,0.00019969,2]
[359059722,1745682644700,-400.0,0.00019969,2]
[359059723,1745682644712,-300.0,0.00019969,2]
[359059724,1745682644725,-400.0,0.00019969,2]
[359059725,1745682644736,-881.72,0.00019969,2]
[359059726,1745682644749,-400.0,0.00019969,2]
[359059727,1745682644761,-400.0,0.00019969,2]
[359059728,1745682644774,-400.0,0.00019969,2]
[359059729,1745682644786,-453.61,0.00019969,2]
[359059730,1745682644798,-400.0,0.00019969,2]
[359059731,1745682644811,-400.0,0.00019969,2]
[359059732,1745682644823,-468.24,0.00019969,2]
[359059733,1745682644835,-400.0,0.00019969,2]
[359059734,1745682644847,-672.89,0.00019969,2]
[359059735,1745682644859,-400.0,0.00019969,2]
[359059736,1745682644871,-737.03,0.00019969,2]
[359059737,1745682644885,-200.0,0.00019969,2]
[359059738,1745682644895,-400.0,0.00019969,2]
[359059739,1745682644905,-432.89,0.00019969,2]
[359059740,1745682644914,-478.22007427,0.00019969,2]
[359059741,1745682644924,-200.0,0.00019969,2]
[359059742,1745682644933,-400.0,0.00019969,2]
[359059743,1745682644943,-400.0,0.00019969,2]
[359059744,1745682644953,-400.0,0.00019969,2]
[359059745,1745682644962,-473.71,0.00019969,2]
[359059746,1745682644971,-521.79,0.00019969,2]
[359059747,1745682644981,-994.43,0.00019969,2]
[359059748,1745682644991,-400.0,0.00019969,2]
[359059749,1745682645001,-537.4,0.00019969,2]
[359059750,1745682645012,-650.04,0.00019969,2]
[359059751,1745682645024,-458.71,0.00019969,2]
[359059752,1745682645036,-567.19,0.00019969,2]
[359059753,1745682645048,-200.0,0.00019969,2]
[359059754,1745682645058,-400.0,0.00019969,2]
[359059755,1745682645069,-400.0,0.00019969,2]
[359059756,1745682645079,-253.30116405,0.00019969,2]
[359059757,1745682645089,-400.0,0.00019969,2]
[359059758,1745682645595,-400.0,0.00019969,2]
[359059759,1745682645622,-400.0,0.00019969,2]
[359059760,1745682645657,-400.0,0.00019969,2]
[359059761,1745682645676,-202.16757168,0.00019969,2]
[359059762,1745682645686,-400.0,0.00019969,2]
[359059763,1745682645696,-1727.14,0.00019969,2]
[359059764,1745682645706,-400.0,0.00019969,2]
[359059765,1745682645717,-500.0,0.00019969,2]
[359059766,1745682645726,-435.32,0.00019969,2]
[359059767,1745682645736,-471.62130063,0.00019969,2]
[359059768,1745682645746,-1053.0,0.00019969,2]
[359059769,1745682645756,-400.0,0.00019969,2]
[359059770,1745682645766,-400.0,0.00019969,2]
[359059771,1745682645776,-400.0,0.00019969,2]
[359059772,1745682645786,-680.24,0.00019969,2]
[359059773,1745682645796,-400.0,0.00019969,2]
[359059774,1745682645806,-685.3,0.00019969,2]
[359059775,1745682645816,-894.57,0.00019969,2]
[359059776,1745682645825,-500.0,0.00019969,2]
[359059777,1745682645835,-200.0,0.00019969,2]
[359059778,1745682645844,-400.0,0.00019969,2]
[359059779,1745682645854,-400.0,0.00019969,2]
[359059780,1745682645863,-400.0,0.00019969,2]
[359059781,1745682645873,-1552.37,0.00019969,2]
[359059782,1745682645884,-400.0,0.00019969,2]
[359059783,1745682645893,-400.0,0.00019969,2]
[359059784,1745682645903,-781.87,0.00019969,2]
[359059785,1745682645913,-400.0,0.00019969,2]
[359059786,1745682645924,-400.0,0.00019969,2]
[359059787,1745682645933,-400.0,0.00019969,2]
[359059788,1745682645943,-400.0,0.00019969,2]
[359059789,1745682645953,-1935.46,0.00019969,2]
[359059790,1745682645962,-400.0,0.00019969,2]
[359059791,1745682645972,-400.0,0.00019969,2]
[359059792,1745682645981,-400.0,0.00019969,2]
[359059793,1745682645991,-400.0,0.00019969,2]
[359059794,1745682646000,-400.0,0.00019969,2]
[359059795,1745682646010,-400.0,0.00019969,2]
[359059796,1745682646019,-400.0,0.00019969,2]
[359059797,1745682646029,-512.74,0.00019969,2]
[359059798,1745682646038,-400.0,0.00019969,2]
[359059799,1745682646048,-400.0,0.00019969,2]
[359059800,1745682646058,-684.27,0.00019969,2]
[359059801,1745682646068,-400.0,0.00019969,2]
[359059802,1745682646078,-400.0,0.00019969,2]
[359059803,1745682646088,-400.0,0.00019969,2]
[359059804,1745682646098,-400.0,0.00019969,2]
[359059805,1745682646109,-400.0,0.00019969,2]
[359059806,1745682646118,-600.67,0.00019969,2]
[359059807,1745682646129,-400.0,0.00019969,2]
[359059808,1745682646138,-223.97578909,0.00019969,2]
[359059809,1745682646146,-206.05235165,0.00019969,2]
[359059810,1745682646156,-400.0,0.00019969,2]
[359059811,1745682646165,-820.97,0.00019969,2]
[359059812,1745682646173,-400.0,0.00019969,2]
[359059813,1745682646182,-400.0,0.00019969,2]
[359059814,1745682646190,-400.0,0.00019969,2]
[359059815,1745682646198,-730.2,0.00019969,2]
[359059816,1745682646206,-400.0,0.00019969,2]
[359059817,1745682646215,-632.98,0.00019969,2]
[359059818,1745682646223,-509.75,0.00019969,2]
[359059819,1745682646232,-466.68,0.00019969,2]
[359059820,1745682646240,-400.0,0.00019969,2]
[359059821,1745682646249,-400.0,0.00019969,2]
[359059822,1745682646259,-601.83,0.00019969,2]
[359059823,1745682646268,-526.85,0.00019969,2]
[359059824,1745682646278,-261.81966742,0.00019969,2]
[359059825,1745682646289,-400.0,0.00019969,2]
[359059826,1745682646299,-400.0,0.00019969,2]
[359059827,1745682646308,-400.0,0.00019969,2]
[359059828,1745682646320,-548.31,0.00019969,2]
[359059829,1745682646330,-400.0,0.00019969,2]
[359059830,1745682646340,-652.25,0.00019969,2]
[359059831,1745682646351,-462.15,0.00019969,2]
[359059832,1745682646365,-257.71590563,0.00019969,2]
[359059833,1745682646375,-400.0,0.00019969,2]
[359059834,1745682646386,-400.0,0.00019969,2]
[359059835,1745682646397,-400.0,0.00019969,2]
[359059836,1745682646407,-400.0,0.00019969,2]
[359059837,1745682646418,-662.16,0.00019969,2]
[359059838,1745682646428,-202.72115054,0.00019969,2]
[359059839,1745682646442,-400.0,0.00019969,2]
[359059840,1745682646454,-728.59,0.00019969,2]
[359059841,1745682646463,-400.0,0.00019969,2]
[359059842,1745682646472,-4010.85,0.00019969,2]
[359059843,1745682646481,-200.0,0.00019969,2]
[359059844,1745682646491,-400.0,0.00019969,2]
[359059845,1745682646500,-407.14,0.00019969,2]
[359059846,1745682646509,-400.0,0.00019969,2]
[359059847,1745682646519,-669.27,0.00019969,2]
[359059848,1745682646529,-400.0,0.00019969,2]
[359059849,1745682646539,-666.15,0.00019969,2]
[359059850,1745682646548,-409.01,0.00019969,2]
[359059851,1745682646558,-453.83855571,0.00019969,2]
[359059852,1745682646567,-361.98481845,0.00019969,2]
[359059853,1745682646576,-400.0,0.00019969,2]
[359059854,1745682646586,-802.45,0.00019969,2]
[359059855,1745682646595,-400.0,0.00019969,2]
[359059856,1745682646604,-400.0,0.00019969,2]
[359059857,1745682646613,-400.0,0.00019969,2]
[359059858,1745682646622,-400.0,0.00019969,2]
[359059859,1745682646633,-462.53,0.00019969,2]
[359059861,1745682646642,-400.0,0.00019969,2]
[359059862,1745682646652,-1834.14,0.00019969,2]
[359059864,1745682646662,-424.43,0.00019969,2]
[359059866,1745682646671,-783.06,0.00019969,2]
[359059867,1745682646682,-400.0,0.00019969,2]
[359059868,1745682646692,-687.46,0.00019969,2]
[359059869,1745682646703,-400.0,0.00019969,2]
[359059870,1745682646713,-513.6,0.00019969,2]
[359059872,1745682646723,-400.0,0.00019969,2]
[359059873,1745682646732,-192.18826043,0.00019969,2]
[359059874,1745682646741,-400.0,0.00019969,2]
[359059875,1745682646750,-400.0,0.00019969,2]
[359059876,1745682646760,-423.19,0.00019969,2]
[359059877,1745682646769,-400.0,0.00019969,2]
[359059878,1745682646778,-229.68816259,0.00019969,2]
[359059879,1745682646788,-400.0,0.00019969,2]
[359059880,1745682646797,-400.0,0.00019969,2]
[359059881,1745682646806,-400.0,0.00019969,2]
[359059882,1745682646816,-400.0,0.00019969,2]
[359059883,1745682646825,-400.0,0.00019969,2]
[359059884,1745682646835,-300.0,0.00019969,2]
[359059885,1745682646845,-400.0,0.00019969,2]
[359059886,1745682646855,-400.0,0.00019969,2]
[359059887,1745682646864,-638.96,0.00019969,2]
[359059888,1745682646875,-844.63,0.00019969,2]